bitfinex/quotes_BTCUSD_20240828
["timestamp","ask_amount","ask_price","bid_price","bid_amount"]
[1724859693464,0.000818,58872.0,58871.0,1.50439132]
[1724859693686,0.000818,58872.0,58871.0,1.49039132]
[1724859693914,0.000818,58872.0,58871.0,1.15066632]
[1724859694386,0.000818,58872.0,58871.0,1.49039132]
[1724859694615,0.02743938,58872.0,58871.0,1.50439132]
[1724859696829,0.02743938,58872.0,58871.0,1.16466632]
[1724859697274,0.02743938,58872.0,58871.0,1.50439132]
[1724859697495,0.000818,58872.0,58871.0,1.50439132]
[1724859698862,0.000818,58872.0,58871.0,1.50939132]
[1724859699080,0.000818,58872.0,58871.0,1.60939132]
[1724859699289,1e-06,58872.0,58871.0,3.00844545]
[1724859699513,0.000616,58880.0,58879.0,1.205876]
[1724859699755,0.000616,58880.0,58879.0,2.70402573]
[1724859699981,0.000616,58880.0,58879.0,2.82204245]
[1724859701367,0.000616,58880.0,58879.0,2.8678497]
[1724859701590,0.000616,58880.0,58879.0,2.8818497]
[1724859701807,0.000616,58880.0,58879.0,2.84667576]
[1724859702519,0.000616,58880.0,58879.0,2.83267576]
[1724859702946,0.000616,58880.0,58879.0,2.84667576]
[1724859703377,0.00041159,58880.0,58879.0,2.84667576]
[1724859704250,0.00041159,58880.0,58879.0,2.83267576]
[1724859704691,0.00041159,58880.0,58879.0,2.84667576]
[1724859704916,0.02661272,58896.0,58879.0,2.84667576]
[1724859704917,0.01289536,58896.0,58895.0,1.193554]
[1724859705155,0.50622386,58900.0,58899.0,0.509346]
[1724859705378,0.000816,58900.0,58899.0,1.188474]
[1724859705600,0.000816,58900.0,58899.0,1.30306471]
[1724859705842,0.000816,58900.0,58899.0,1.32056178]
[1724859706937,0.000816,58900.0,58899.0,1.33456178]
[1724859707152,0.000816,58900.0,58899.0,1.67912578]
[1724859707583,0.000816,58900.0,58899.0,1.77912578]
[1724859707798,0.000816,58900.0,58899.0,1.45033657]
[1724859708026,0.000816,58900.0,58899.0,1.46433657]
[1724859708489,0.000816,58900.0,58899.0,1.45356178]
[1724859708935,0.000816,58900.0,58899.0,1.44856178]
[1724859709141,0.000816,58900.0,58899.0,0.76943378]
[1724859709372,0.000816,58900.0,58899.0,1.10899778]
[1724859709594,0.000816,58900.0,58899.0,1.44856178]
[1724859709841,0.000816,58900.0,58899.0,1.60246178]
[1724859710059,0.000816,58900.0,58899.0,1.96702578]
[1724859710702,0.000816,58900.0,58899.0,1.94202578]
[1724859711765,0.000816,58900.0,58899.0,1.91402578]
[1724859711974,0.000816,58900.0,58899.0,1.92802578]
[1724859712472,0.000816,58900.0,58899.0,1.09499778]
[1724859712711,0.083916,58900.0,58899.0,0.14608778]
[1724859712959,0.932811,58900.0,58899.0,0.03149707]
[1724859713185,0.423474,58900.0,58899.0,0.04549707]
[1724859713393,0.932811,58900.0,58899.0,0.014]
[1724859713687,0.083916,58900.0,58899.0,0.014]
[1724859714136,0.083916,58900.0,58899.0,0.2331406]
[1724859714342,0.083916,58900.0,58899.0,0.59003783]
[1724859714547,0.083916,58900.0,58899.0,0.57603783]
[1724859715014,0.083916,58900.0,58899.0,0.57503783]
[1724859715458,0.000816,58900.0,58899.0,0.92160183]
[1724859715697,0.000816,58900.0,58899.0,1.25416583]
[1724859715936,0.000816,58900.0,58899.0,1.26816583]
[1724859716392,0.000816,58900.0,58899.0,1.25516583]
[1724859716605,0.000816,58900.0,58899.0,1.26916583]
[1724859716829,0.000816,58900.0,58899.0,1.25516583]
[1724859717050,0.000816,58900.0,58899.0,1.24116583]
[1724859717507,0.000816,58900.0,58899.0,1.25516583]
[1724859717925,0.000816,58900.0,58899.0,1.24116583]
[1724859718130,0.000816,58900.0,58899.0,1.25516583]
[1724859718351,0.000816,58900.0,58899.0,1.26916583]
[1724859718573,0.000816,58900.0,58899.0,1.79302983]
[1724859719640,0.000816,58900.0,58899.0,1.76502983]
[1724859719857,0.000816,58900.0,58899.0,1.77902983]
[1724859720104,0.000816,58900.0,58899.0,1.79302983]
[1724859720337,0.000816,58900.0,58899.0,1.80302983]
[1724859720554,0.000816,58900.0,58899.0,1.78902983]
[1724859720996,0.000816,58900.0,58899.0,1.45346583]
[1724859721423,0.000816,58900.0,58899.0,1.37416583]
[1724859721638,0.000816,58900.0,58899.0,1.02960183]
[1724859722083,0.000816,58900.0,58899.0,1.36916583]
[1724859722299,0.000816,58900.0,58899.0,1.37416583]
[1724859722514,0.000816,58900.0,58899.0,1.45666583]
[1724859722735,0.000816,58900.0,58899.0,1.46666583]
[1724859722958,0.000816,58900.0,58899.0,1.45666583]
[1724859723178,0.000816,58900.0,58899.0,1.37416583]
[1724859724867,0.000816,58900.0,58899.0,1.36916583]
[1724859725113,0.000816,58900.0,58899.0,1.37416583]
[1724859725563,0.000816,58900.0,58899.0,1.02960183]
[1724859725776,0.000816,58900.0,58899.0,1.03460183]
[1724859725992,0.000816,58900.0,58899.0,1.37416583]
[1724859726216,0.000816,58900.0,58899.0,1.02960183]
[1724859727063,0.000816,58900.0,58899.0,1.36916583]
[1724859727267,0.000816,58900.0,58899.0,1.02960183]
[1724859727464,0.000816,58900.0,58899.0,1.45016583]
[1724859727692,0.000816,58900.0,58899.0,1.11060183]
[1724859727937,0.066616,58900.0,58899.0,0.25047383]
[1724859728160,0.066616,58900.0,58899.0,0.92960183]
[1724859728781,0.066616,58900.0,58899.0,0.57603783]
[1724859729234,0.09322565,58900.0,58899.0,0.59003783]
[1724859729455,0.09322565,58900.0,58899.0,0.91560183]
[1724859729657,0.02742565,58900.0,58899.0,0.90160183]
[1724859729889,0.02742565,58900.0,58899.0,1.26916583]
[1724859730259,0.02742565,58900.0,58899.0,1.25516583]
[1724859730618,0.02742565,58900.0,58899.0,1.26916583]
[1724859731264,0.10672565,58900.0,58899.0,0.91560183]
[1724859731475,0.02742565,58900.0,58899.0,0.91560183]
[1724859732129,0.02742565,58900.0,58899.0,0.90160183]
[1724859732622,0.02742565,58900.0,58899.0,0.91560183]
[1724859733048,0.02742565,58900.0,58899.0,1.25225064]
[1724859733266,0.02742565,58900.0,58899.0,1.33435064]
[1724859733465,0.02742565,58900.0,58899.0,1.34835064]
[1724859734027,0.02742565,58900.0,58899.0,1.33435064]
[1724859734256,0.7963,58930.0,58912.0,0.169744]
[1724859734476,0.00817,58918.0,58913.0,0.0509241]
[1724859734693,0.01241337,58918.0,58914.0,0.339476]
[1724859734880,0.169731,58917.0,58915.0,0.03569623]
[1724859735082,0.01241337,58918.0,58915.0,0.169735]
[1724859735407,0.84865,58917.0,58916.0,0.01748633]
[1724859735629,0.50919,58917.0,58916.0,0.01748633]
[1724859735863,0.00817,58918.0,58913.0,0.339483]
[1724859736091,0.00817,58918.0,58916.0,0.01748633]
[1724859736344,0.347605,58922.0,58921.0,0.169718]
[1724859736345,0.00817,58922.0,58921.0,0.169718]
[1724859736627,0.00817,58922.0,58915.0,0.013]
[1724859736855,0.177885,58922.0,58921.0,0.0173884]
[1724859737115,0.0619,58920.0,58917.0,0.169729]
[1724859737353,0.169726,58919.0,58917.0,0.0534205]
[1724859737588,0.231622,58920.0,58917.0,0.0534205]
[1724859737805,0.0619,58920.0,58919.0,0.509173]
[1724859738037,0.0619,58920.0,58919.0,0.848622]
[1724859738261,0.0796,58921.0,58920.0,0.848607]
[1724859738962,0.00817,58922.0,58921.0,1.188029]
[1724859739215,0.00817,58922.0,58921.0,1.3079319]
[1724859739862,0.00817,58922.0,58921.0,0.9684949]
[1724859740371,0.00817,58922.0,58921.0,0.6290579]
[1724859740804,0.00817,58922.0,58921.0,0.6430579]
[1724859741051,0.00817,58922.0,58921.0,0.523155]
[1724859741683,0.00817,58922.0,58921.0,0.183718]
[1724859741917,0.08787,58922.0,58921.0,0.028]
[1724859742135,0.00817,58922.0,58921.0,0.523155]
[1724859742352,0.00817,58922.0,58921.0,0.9488524]
[1724859742802,0.00817,58922.0,58921.0,0.9348524]
[1724859743231,0.00817,58922.0,58921.0,0.9488524]
[1724859743884,0.00817,58922.0,58921.0,0.9628524]
[1724859744274,0.00817,58922.0,58921.0,0.6094154]
[1724859744371,0.08567,58922.0,58921.0,0.1002604]
[1724859744589,0.08567,58922.0,58921.0,0.014]
[1724859744802,0.08567,58922.0,58919.0,0.169723]
[1724859745016,0.08567,58922.0,58915.0,0.169734]
[1724859745017,0.169726,58919.0,58915.0,0.169734]
[1724859745226,0.169721,58920.0,58916.0,0.23880227]
[1724859745453,0.402439,58921.0,58916.0,0.06907127]
[1724859745454,0.063,58921.0,58916.0,0.06907127]
[1724859745676,0.063,58921.0,58917.0,0.0579174]
[1724859745677,0.169725,58919.0,58917.0,0.0579174]
[1724859745884,0.063,58921.0,58917.0,0.0579174]
[1724859745885,0.063,58921.0,58917.0,0.169728]
[1724859746096,0.063,58921.0,58914.0,0.3403717]
[1724859746097,0.169721,58920.0,58916.0,0.169733]
[1724859746310,0.063,58921.0,58917.0,0.169728]
[1724859746519,0.063,58921.0,58918.0,0.22753454]
[1724859746773,0.063,58921.0,58919.0,0.169723]
[1724859747035,0.06287453,58921.0,58920.0,0.169721]
[1724859747272,0.06287453,58921.0,58920.0,0.56726295]
[1724859747506,0.08567,58922.0,58921.0,0.169718]
[1724859747726,0.08567,58922.0,58921.0,0.509155]
[1724859748365,0.03477274,58922.0,58921.0,0.848592]
[1724859748580,0.03477274,58922.0,58921.0,1.31924307]
[1724859749007,0.03477274,58922.0,58921.0,1.33324307]
[1724859749482,0.03477274,58922.0,58921.0,1.34724307]
[1724859749682,0.03477274,58922.0,58921.0,1.33324307]
[1724859749895,0.03477274,58922.0,58921.0,1.34724307]
[1724859750352,0.03477274,58922.0,58921.0,1.33324307]
[1724859750582,0.03477274,58922.0,58921.0,1.34485752]
[1724859750832,0.03477274,58922.0,58921.0,1.00542052]
[1724859751468,0.03477274,58922.0,58921.0,0.99142052]
[1724859751681,0.03477274,58922.0,58921.0,1.00542052]
[1724859752627,0.03477274,58922.0,58921.0,1.01942052]
[1724859755026,0.03477274,58922.0,58921.0,1.35885752]
[1724859757730,0.00817,58922.0,58921.0,1.43395752]
[1724859758175,0.00796572,58922.0,58921.0,1.53395752]
[1724859758842,0.00796572,58922.0,58921.0,1.87339452]
[1724859759512,0.00796572,58922.0,58921.0,1.13022712]
[1724859759695,0.00796572,58922.0,58921.0,1.45885752]
[1724859759975,0.00796572,58922.0,58921.0,1.44485752]
[1724859760188,0.00796572,58922.0,58921.0,1.52625752]
[1724859760629,0.00796572,58922.0,58921.0,1.54025752]
[1724859760849,0.00796572,58922.0,58921.0,1.52625752]
[1724859761072,0.00796572,58922.0,58921.0,1.54025752]
[1724859761320,0.00796572,58922.0,58921.0,1.45885752]
[1724859761781,0.00796572,58922.0,58921.0,1.44485752]
[1724859762914,0.00796572,58922.0,58921.0,1.45885752]
[1724859763164,0.00796572,58922.0,58921.0,1.44485752]
[1724859763452,0.00796572,58922.0,58921.0,1.45885752]
[1724859763687,0.00796572,58922.0,58921.0,1.44485752]
[1724859763958,0.00796572,58922.0,58921.0,1.43085752]
[1724859764230,0.00796572,58922.0,58921.0,0.15682852]
[1724859764475,0.32038072,58922.0,58921.0,0.02561445]
[1724859764696,0.15066572,58922.0,58921.0,0.01161445]
[1724859764945,0.15066572,58922.0,58921.0,0.014]
[1724859765191,0.15066572,58922.0,58921.0,0.02349897]
[1724859765192,0.32038172,58922.0,58921.0,0.02349897]
[1724859765424,0.65981272,58922.0,58921.0,0.02349897]
[1724859765664,0.65981272,58922.0,58914.0,0.0008987]
[1724859765665,0.509208,58915.0,58914.0,0.0008987]
[1724859765915,0.99138,58915.0,58914.0,0.0008987]
[1724859767128,0.1405,58912.0,58897.0,0.01091895]
[1724859767447,0.233287,58897.0,58896.0,0.0008987]
[1724859767681,0.912437,58897.0,58896.0,0.0008987]
[1724859767920,1.329012,58897.0,58896.0,0.00877056]
[1724859768160,1.329012,58897.0,58896.0,0.0008987]
[1724859769304,1.331012,58897.0,58896.0,0.0008987]
[1724859769561,1.330012,58897.0,58896.0,0.0008987]
[1724859769822,1.01705368,58897.0,58896.0,0.0008987]
[1724859770052,1.01705368,58897.0,58896.0,0.0018987]
[1724859770516,1.01605368,58897.0,58896.0,0.0008987]
[1724859770984,1.01605368,58897.0,58896.0,0.0038987]
[1724859771452,1.01605368,58897.0,58896.0,0.0008987]
[1724859771922,1.01605368,58897.0,58896.0,0.0088987]
[1724859772641,1.01805368,58897.0,58896.0,0.0088987]
[1724859772891,1.01605368,58897.0,58896.0,0.0088987]
[1724859773350,1.01605368,58897.0,58896.0,0.0148987]
[1724859773600,1.35562868,58897.0,58896.0,0.0148987]
[1724859774537,1.35562868,58897.0,58896.0,0.0068987]
[1724859774751,1.01605368,58897.0,58896.0,0.0148987]
[1724859775039,1.35562868,58897.0,58896.0,0.0148987]
[1724859775246,1.35562868,58897.0,58896.0,0.0068987]
[1724859775686,1.35562868,58897.0,58896.0,0.0148987]
[1724859775914,1.691587,58897.0,58896.0,0.0148987]
[1724859776178,1.40495873,58897.0,58896.0,0.0088987]
[1724859776664,1.352012,58897.0,58896.0,0.0068987]
[1724859776910,1.40495873,58897.0,58896.0,0.0008987]
[1724859777169,1.40795873,58897.0,58896.0,0.0008987]
[1724859777414,0.99157,58881.0,58880.0,0.003235]
[1724859777891,1.38418473,58881.0,58880.0,0.003235]
[1724859778150,1.331238,58881.0,58880.0,0.003235]
[1724859778827,1.38011223,58881.0,58880.0,0.003235]
[1724859779530,1.40773592,58881.0,58880.0,0.003235]
[1724859779778,1.35886169,58881.0,58880.0,0.003235]
[1724859780019,1.01919369,58881.0,58880.0,0.003235]
[1724859780265,1.36086169,58881.0,58880.0,0.003235]
[1724859780477,1.35786169,58881.0,58880.0,0.008235]
[1724859780766,1.01819369,58881.0,58880.0,0.011235]
[1724859781004,1.01819369,58881.0,58880.0,0.008235]
[1724859781440,1.01919369,58881.0,58880.0,0.016235]
[1724859782144,0.61712569,58881.0,58880.0,0.011235]
[1724859782376,0.53812569,58881.0,58880.0,0.020235]
[1724859782656,0.87779369,58881.0,58880.0,0.020235]
[1724859783597,0.95739369,58881.0,58880.0,0.020235]
[1724859784283,1.29706169,58881.0,58880.0,0.020235]
[1724859785233,1.33967217,58881.0,58880.0,0.020235]
[1724859786166,0.95739369,58881.0,58880.0,0.020235]
[1724859786397,0.53812569,58881.0,58880.0,0.020235]
[1724859787075,0.53812569,58881.0,58880.0,0.0392432]
[1724859787320,0.53812569,58881.0,58880.0,0.020235]
[1724859787780,0.19845769,58881.0,58880.0,0.020235]
[1724859787995,0.002,58881.0,58880.0,0.020235]
[1724859788951,0.002,58881.0,58880.0,1.7124633]
[1724859789183,0.002,58881.0,58880.0,1.98601494]
[1724859789403,0.002,58881.0,58880.0,1.62404034]
[1724859789857,0.001,58881.0,58880.0,1.61504034]
[1724859790083,0.001,58881.0,58880.0,1.63981017]
[1724859790387,0.50540786,58896.0,58893.0,0.169798]
[1724859790482,0.50540786,58896.0,58895.0,0.169793]
[1724859790705,0.169785,58898.0,58893.0,0.169797]
[1724859790937,0.169788,58897.0,58893.0,0.169798]
[1724859791167,0.169788,58897.0,58894.0,0.0586501]
[1724859791394,0.02661527,58897.0,58894.0,0.05849866]
[1724859791649,0.02661527,58897.0,58894.0,0.22829266]
[1724859791876,0.001,58896.0,58895.0,0.014]
[1724859792111,0.17079,58896.0,58895.0,0.07989957]
[1724859792337,0.925452,58896.0,58895.0,0.014]
[1724859792564,1.265033,58896.0,58895.0,0.014]
[1724859793260,1.265033,58896.0,58894.0,0.014]
[1724859793261,0.50938,58895.0,58894.0,0.014]
[1724859793489,0.0755,58896.0,58885.0,0.169821]
[1724859793713,0.50938,58895.0,58894.0,0.014]
[1724859793939,0.50938,58895.0,58883.0,0.679309]
[1724859793940,0.169808,58890.0,58885.0,0.16982]
[1724859794194,0.169808,58890.0,58886.0,0.0509474]
[1724859794425,0.339587,58895.0,58886.0,0.0509474]
[1724859794426,0.169811,58889.0,58886.0,0.0509474]
[1724859794660,0.169808,58890.0,58886.0,0.2207654]
[1724859794893,0.645082,58899.0,58895.0,0.014]
[1724859795125,0.645084,58899.0,58895.0,0.183793]
[1724859795350,0.645084,58899.0,58895.0,0.169793]
[1724859795853,0.169785,58898.0,58895.0,0.169793]
[1724859796094,0.16979,58897.0,58894.0,0.014]
[1724859796344,0.4753,58899.0,58898.0,0.169785]
[1724859796580,0.4753,58899.0,58898.0,0.509355]
[1724859796820,0.169757,58908.0,58898.0,0.0759]
[1724859797069,0.339514,58908.0,58899.0,0.0570855]
[1724859797301,0.10631656,58913.0,58895.0,0.011]
[1724859797302,0.848952,58896.0,58895.0,0.011]
[1724859797528,1.268233,58896.0,58895.0,0.011]
[1724859798483,0.928652,58896.0,58895.0,0.011]
[1724859798701,0.9552677,58896.0,58895.0,0.011]
[1724859798921,0.169802,58892.0,58888.0,0.169813]
[1724859799142,0.169806,58891.0,58887.0,0.169814]
[1724859799365,0.169801,58893.0,58889.0,0.16981]
[1724859799845,0.0266157,58896.0,58890.0,0.169807]
[1724859800083,0.0266157,58896.0,58895.0,0.169793]
[1724859800315,0.0266157,58896.0,58895.0,0.2327424]
[1724859800553,0.02641134,58896.0,58895.0,0.175793]
[1724859800777,0.02641134,58896.0,58895.0,0.002]
[1724859801004,0.02641134,58896.0,58894.0,0.169796]
[1724859801234,0.079,58895.0,58890.0,0.013]
[1724859801468,0.079,58895.0,58888.0,0.05943668]
[1724859801469,0.169797,58894.0,58888.0,0.169812]
[1724859801937,0.079,58895.0,58883.0,0.483353]
[1724859801938,0.079,58895.0,58889.0,0.169809]
[1724859802181,0.169797,58894.0,58890.0,0.0509442]
[1724859802631,0.079,58895.0,58890.0,0.0509442]
[1724859802864,0.169803,58892.0,58887.0,0.169814]
[1724859803111,0.079,58895.0,58888.0,0.014]
[1724859803112,0.169811,58889.0,58888.0,0.014]
[1724859803337,0.509433,58889.0,58888.0,0.014]
[1724859803564,0.509449,58887.0,58886.0,0.0008987]
[1724859803785,0.339622,58889.0,58886.0,0.0008987]
[1724859804024,0.16981,58890.0,58886.0,0.1707167]
[1724859804251,0.418588,58895.0,58891.0,0.169804]
[1724859804252,0.169794,58895.0,58891.0,0.169804]
[1724859804508,0.000817,58896.0,58888.0,0.418125]
[1724859804509,0.169802,58892.0,58888.0,0.183812]
[1724859804740,0.169802,58892.0,58889.0,0.01847107]
[1724859804960,0.169808,58890.0,58889.0,0.01847107]
[1724859805187,0.000817,58896.0,58886.0,0.0008987]
[1724859805431,0.000817,58896.0,58886.0,0.0148987]
[1724859805432,0.509449,58887.0,58886.0,0.0148987]
[1724859805675,0.849082,58887.0,58886.0,0.0008987]
[1724859805935,0.509449,58887.0,58886.0,0.0008987]
[1724859806864,0.169816,58887.0,58886.0,0.0148987]
[1724859807095,0.169813,58888.0,58886.0,0.0148987]
[1724859807351,0.509433,58889.0,58888.0,0.014]
[1724859807564,0.509449,58887.0,58886.0,0.0148987]
[1724859807779,0.510449,58887.0,58886.0,0.04737147]
[1724859808237,0.849082,58887.0,58886.0,0.0148987]
[1724859808491,1.188715,58887.0,58886.0,0.0148987]
[1724859809159,1.677848,58887.0,58886.0,0.0288987]
[1724859809411,1.86939964,58887.0,58886.0,0.0148987]
[1724859809641,1.9852178,58887.0,58886.0,0.0288987]
[1724859810134,1.9852178,58887.0,58886.0,0.0148987]
[1724859810369,2.3238508,58887.0,58886.0,0.0008987]
[1724859810594,2.38381596,58887.0,58886.0,0.0008987]
[1724859810814,1.675306,58881.0,58880.0,0.0041337]
[1724859811089,2.50001861,58881.0,58880.0,0.0041337]
[1724859811312,2.53989825,58881.0,58880.0,0.0041337]
[1724859811769,2.16035061,58881.0,58880.0,0.0041337]
[1724859811991,2.20423025,58881.0,58880.0,0.0041337]
[1724859812513,2.20423025,58881.0,58862.0,0.0008987]
[1724859812514,0.005,58871.0,58862.0,0.0008987]
[1724859812746,1.190202,58863.0,58862.0,0.0008987]
[1724859812987,1.71235364,58863.0,58862.0,0.0008987]
[1724859813222,1.82406873,58863.0,58862.0,0.0008987]
[1724859813700,1.89908121,58863.0,58862.0,0.0008987]
[1724859813933,1.89907482,58863.0,58862.0,0.0008987]
[1724859814161,1.82406873,58863.0,58862.0,0.0008987]
[1724859814384,1.82506873,58863.0,58862.0,0.0008987]
[1724859814611,1.694474,58863.0,58862.0,0.0008987]
[1724859814833,1.694474,58863.0,58862.0,0.0098987]
[1724859815083,1.73635364,58863.0,58862.0,0.0098987]
[1724859815303,1.73635364,58863.0,58862.0,0.0008987]
[1724859815530,1.86402564,58863.0,58862.0,0.0148987]
[1724859815762,1.86602564,58863.0,58862.0,0.0148987]
[1724859815981,1.86402564,58863.0,58862.0,0.0008987]
[1724859816255,1.693474,58863.0,58862.0,0.0008987]
[1724859816472,1.331702,58863.0,58862.0,0.0128987]
[1724859817644,1.332702,58863.0,58862.0,0.0128987]
[1724859818528,0.93253,58863.0,58862.0,0.0128987]
[1724859818750,0.85143,58863.0,58862.0,0.0128987]
[1724859820551,0.511658,58863.0,58862.0,0.0128987]
[1724859820769,0.511658,58863.0,58862.0,0.0949987]
[1724859820989,0.511658,58863.0,58862.0,0.0128987]
[1724859821239,0.85143,58863.0,58862.0,0.0128987]
[1724859822144,1.271002,58863.0,58862.0,0.0128987]
[1724859824026,1.191202,58863.0,58862.0,0.0128987]
[1724859824731,0.85143,58863.0,58862.0,0.0128987]
[1724859824971,0.511658,58863.0,58862.0,0.0128987]
[1724859825222,0.85143,58863.0,58862.0,0.0128987]
[1724859825707,0.85117249,58863.0,58862.0,0.0128987]
[1724859825951,0.51140049,58863.0,58862.0,0.0128987]
[1724859826543,0.17162849,58863.0,58862.0,0.0128987]
[1724859826631,0.51140049,58863.0,58862.0,0.0934987]
[1724859827123,0.002,58863.0,58862.0,0.10312207]
[1724859827372,0.171886,58863.0,58862.0,0.10312207]
[1724859827612,0.511658,58863.0,58862.0,0.10312207]
[1724859828111,0.85143,58863.0,58862.0,0.02252207]
[1724859828353,1.191202,58863.0,58862.0,0.0128987]
[1724859829973,0.511658,58863.0,58862.0,0.0128987]
[1724859830729,0.85143,58863.0,58862.0,0.0128987]
[1724859830979,0.002,58863.0,58862.0,0.1827867]
[1724859831220,0.002,58863.0,58862.0,0.33963887]
[1724859831514,0.002,58863.0,58862.0,0.16975087]
[1724859831698,0.002,58863.0,58862.0,0.67941587]
[1724859832189,0.002,58863.0,58862.0,0.33963887]
[1724859832871,0.002,58863.0,58862.0,1.01919287]
[1724859833094,0.002,58863.0,58862.0,0.67941587]
[1724859833785,0.002,58863.0,58862.0,1.01919287]
[1724859834536,0.002,58863.0,58862.0,0.67941587]
[1724859834789,0.171886,58863.0,58862.0,0.1511987]
[1724859835044,0.002,58863.0,58862.0,0.0745987]
[1724859835286,0.511658,58863.0,58862.0,0.0128987]
[1724859835530,0.85143,58863.0,58862.0,0.0128987]
[1724859835748,0.511658,58863.0,58862.0,0.0128987]
[1724859837137,0.85143,58863.0,58862.0,0.0128987]
[1724859837608,0.511658,58863.0,58862.0,0.0128987]
[1724859837823,0.589358,58863.0,58862.0,0.0128987]
[1724859838072,0.92913,58863.0,58862.0,0.0128987]
[1724859838517,1.268902,58863.0,58862.0,0.0128987]
[1724859838958,0.85143,58863.0,58862.0,0.0128987]
[1724859839912,0.852248,58863.0,58862.0,0.0128987]
[1724859840365,0.512476,58863.0,58862.0,0.0128987]
[1724859840614,0.512476,58863.0,58862.0,0.0743987]
[1724859840844,0.002818,58863.0,58862.0,0.10713187]
[1724859841067,0.172704,58863.0,58862.0,0.0128987]
[1724859841286,1.19202,58863.0,58862.0,0.0128987]
[1724859843618,0.852248,58863.0,58862.0,0.0128987]
[1724859844805,0.852248,58863.0,58862.0,0.0952987]
[1724859844806,0.002818,58863.0,58862.0,0.0952987]
[1724859845045,0.002818,58863.0,58862.0,0.6049637]
[1724859845285,0.002818,58863.0,58862.0,0.97153357]
[1724859845521,0.002818,58863.0,58862.0,1.03743357]
[1724859845760,0.00256049,58863.0,58862.0,1.03743357]
[1724859846491,0.00256049,58863.0,58862.0,1.37721057]
[1724859847458,0.001818,58863.0,58862.0,1.36521057]
[1724859847698,0.001818,58863.0,58862.0,1.37821057]
[1724859847942,0.001818,58863.0,58862.0,1.03843357]
[1724859848167,0.001818,58863.0,58862.0,0.69865657]
[1724859848416,0.001818,58863.0,58862.0,0.35887957]
[1724859848655,0.002818,58863.0,58862.0,0.35887957]
[1724859848889,0.002818,58863.0,58862.0,0.69865657]
[1724859849122,0.001818,58863.0,58862.0,0.34587957]
[1724859849415,0.001818,58863.0,58862.0,0.69965657]
[1724859849903,0.001818,58863.0,58862.0,0.68565657]
[1724859850150,0.001818,58863.0,58862.0,0.69965657]
[1724859850385,0.001818,58863.0,58862.0,1.03943357]
[1724859850630,0.000818,58863.0,58862.0,1.02543357]
[1724859851075,0.001818,58863.0,58862.0,1.05343357]
[1724859851323,0.000818,58863.0,58862.0,1.03943357]
[1724859851552,0.000818,58863.0,58862.0,1.05343357]
[1724859851789,0.001818,58863.0,58862.0,0.71365657]
[1724859852046,0.001818,58863.0,58862.0,1.03943357]
[1724859852285,0.002818,58863.0,58862.0,1.39321057]
[1724859852522,0.002818,58863.0,58862.0,1.37921057]
[1724859852766,0.002818,58863.0,58862.0,1.71898757]
[1724859853007,0.002818,58863.0,58862.0,1.73298757]
[1724859853530,0.002818,58863.0,58862.0,2.20962845]
[1724859853781,0.000817,58881.0,58880.0,1.329555]
[1724859854720,0.000817,58881.0,58880.0,1.676228]
[1724859855199,0.000817,58881.0,58880.0,1.776228]
[1724859855414,0.000817,58881.0,58880.0,1.786228]
[1724859855677,0.001817,58881.0,58880.0,2.133901]
[1724859855949,0.000817,58894.0,58880.0,2.133901]
[1724859855950,0.000817,58894.0,58893.0,1.334193]
[1724859856168,0.000817,58894.0,58893.0,1.773791]
[1724859856615,0.000817,58894.0,58893.0,1.434193]
[1724859856865,0.000817,58894.0,58893.0,1.1132939]
[1724859857357,0.000817,58894.0,58893.0,1.0132939]
[1724859857580,0.000817,58894.0,58893.0,1.0272939]
[1724859858290,0.000817,58894.0,58893.0,1.3668919]
[1724859858509,0.000817,58894.0,58893.0,1.3808919]
[1724859858734,0.000817,58894.0,58893.0,1.3668919]
[1724859858982,0.000817,58894.0,58893.0,1.3528919]
[1724859859236,0.000817,58894.0,58893.0,1.0272939]
[1724859859715,0.000817,58894.0,58893.0,1.0132939]
[1724859860159,0.420628,58906.0,58897.0,0.339573]
[1724859860408,0.169768,58904.0,58899.0,0.16978]
[1724859860643,0.250864,58906.0,58901.0,0.169775]
[1724859860869,0.0811,58910.0,58898.0,0.07399096]
[1724859861115,0.0811,58910.0,58894.0,0.02679287]
[1724859861116,0.4753,58911.0,58910.0,0.50925]
[1724859861370,0.339452,58919.0,58913.0,0.169741]
[1724859861371,0.169728,58918.0,58913.0,0.169741]
[1724859861602,0.33945,58919.0,58913.0,0.2284945]
[1724859861603,0.169726,58919.0,58913.0,0.2284945]
[1724859861837,0.169728,58918.0,58913.0,0.2284945]
[1724859862063,0.169731,58917.0,58913.0,0.2284945]
[1724859862293,0.339453,58919.0,58913.0,0.0587535]
[1724859862557,0.587632,58914.0,58902.0,0.339543]
[1724859862774,0.169772,58903.0,58899.0,0.0413564]
[1724859863023,0.064217,58914.0,58898.0,0.176784]
[1724859863024,0.169773,58902.0,58898.0,0.176784]
[1724859863287,0.169769,58904.0,58900.0,0.169778]
[1724859863519,0.169759,58907.0,58902.0,0.169771]
[1724859863729,0.814787,58913.0,58903.0,0.339537]
[1724859863947,0.814787,58913.0,58901.0,0.0616345]
[1724859863948,0.169749,58911.0,58907.0,0.169758]
[1724859864204,0.4753,58913.0,58908.0,0.1867308]
[1724859864444,0.4753,58913.0,58912.0,0.169744]
[1724859864692,0.000817,58914.0,58912.0,0.169744]
[1724859864918,0.000817,58914.0,58910.0,0.169749]
[1724859865154,0.000817,58914.0,58912.0,0.169744]
[1724859865378,0.000817,58914.0,58910.0,0.339498]
[1724859865592,0.000817,58914.0,58911.0,0.339494]
[1724859865809,0.000817,58914.0,58912.0,0.013]
[1724859866047,0.000817,58914.0,58913.0,0.0522244]
[1724859866484,0.000817,58914.0,58913.0,0.5614484]
[1724859866724,0.000817,58914.0,58913.0,0.2219654]
[1724859867224,0.000817,58914.0,58913.0,0.0522244]
[1724859867666,0.646524,58913.0,58912.0,0.014]
[1724859868110,0.509242,58911.0,58910.0,0.014]
[1724859868341,0.339495,58911.0,58901.0,0.33955]
[1724859868591,0.339495,58911.0,58904.0,0.169767]
[1724859868592,0.169757,58908.0,58904.0,0.169767]
[1724859868801,0.169752,58910.0,58905.0,0.169763]
[1724859869050,0.1373,58913.0,58906.0,0.169759]